bitfinex/quotes_ETHUSD_20250411
["timestamp","ask_amount","ask_price","bid_price","bid_amount"]
[1744355426487,0.8098,1549.5,1549.0,5.39186548]
[1744355426684,6.549,1549.4,1549.1,0.1392232]
[1744355431693,6.549,1549.4,1549.1,0.30493204]
[1744355432355,6.549,1549.4,1549.1,0.87461179]
[1744355432693,6.548,1549.4,1549.2,0.8242]
[1744355443411,6.548,1549.4,1549.1,1.27996336]
[1744355443705,6.548,1549.4,1549.2,0.30458151]
[1744355443906,6.548,1549.4,1549.1,1.27996336]
[1744355444204,6.548,1549.4,1549.1,1.79406656]
[1744355444505,6.548,1549.4,1549.2,0.30458151]
[1744355444708,6.548,1549.4,1549.1,1.79406656]
[1744355444905,6.548,1549.4,1549.2,0.30212353]
[1744355445209,6.548,1549.4,1549.1,1.79406656]
[1744355445385,6.548,1549.4,1549.3,0.7612]
[1744355445584,6.548,1549.4,1549.3,1.22342686]
[1744355445792,6.548,1549.4,1549.3,1.5246257]
[1744355447307,6.548,1549.4,1549.3,0.7634257]
[1744355447699,6.548,1549.4,1549.3,0.30119884]
[1744355447999,6.548,1549.4,1549.1,1.25776336]
[1744355448175,6.548,1549.4,1549.3,0.29979697]
[1744355448390,6.548,1549.4,1549.2,0.30024736]
[1744355448594,6.548,1549.4,1549.3,0.29979697]
[1744355449023,6.548,1549.4,1549.1,1.25776336]
[1744355449203,6.548,1549.4,1549.3,0.29979697]
[1744355449725,6.548,1549.4,1549.1,1.25776336]
[1744355449914,6.548,1549.4,1549.3,0.29979697]
[1744355450114,6.548,1549.4,1549.1,1.25776336]
[1744355450323,6.548,1549.4,1549.2,0.30024736]
[1744355450710,6.548,1549.4,1549.1,1.25776336]
[1744355450903,6.548,1549.4,1549.3,0.8184]
[1744355451231,6.548,1549.4,1549.3,1.61308791]
[1744355451593,0.7893,1549.7,1549.3,1.61308791]
[1744355451807,0.819,1549.9,1549.3,1.61308791]
[1744355452224,0.819,1549.9,1549.3,0.79468791]
[1744355452390,0.819,1549.9,1549.4,4.63246862]
[1744355452594,0.819,1549.9,1549.5,0.46324686]
[1744355453099,0.819,1549.9,1549.6,0.29620621]
[1744355453929,0.819,1549.9,1549.2,3.86106862]
[1744355454319,0.819,1549.9,1549.3,0.29781503]
[1744355455297,0.7823,1549.8,1549.3,0.29781503]
[1744355455633,0.7823,1549.7,1549.3,0.29781503]
[1744355455928,0.8186,1549.5,1549.0,0.8089]
[1744355456433,0.8186,1549.5,1549.0,3.8089]
[1744355456622,0.6,1549.4,1549.2,3.0]
[1744355457003,0.6,1549.4,1549.3,0.29781503]
[1744355457530,0.6,1549.4,1549.1,0.7626]
[1744355457736,0.6,1549.4,1548.9,0.7936]
[1744355458040,0.6,1549.4,1549.2,0.29852133]
[1744355458203,0.8289,1549.3,1548.9,3.7936]
[1744355458404,6.495,1549.2,1548.9,3.7936]
[1744355458629,6.495,1549.2,1549.0,0.27577223]
[1744355459040,6.495,1549.2,1548.7,6.08377365]
[1744355459208,11.67056862,1549.2,1549.1,0.2748906]
[1744355459536,7.2595,1549.2,1548.7,5.6545406]
[1744355459699,7.2595,1549.2,1548.7,0.8332]
[1744355459898,7.2595,1549.2,1548.8,0.27770819]
[1744355460098,0.7645,1549.1,1548.8,0.27770819]
[1744355460299,0.7645,1549.1,1548.6,4.69426862]
[1744355460535,0.7645,1549.1,1548.7,0.27729646]
[1744355462733,0.7645,1549.1,1548.7,1.08759646]
[1744355462932,6.495,1549.2,1548.7,1.08759646]
[1744355463131,6.495,1549.2,1548.8,3.86106862]
[1744355463341,6.495,1549.2,1548.9,1.49282954]
[1744355463833,6.495,1549.2,1548.9,1.21660686]
[1744355464136,6.495,1549.2,1549.0,0.27559968]
[1744355464834,6.495,1549.2,1549.0,4.1366683]
[1744355465540,6.495,1549.2,1549.0,0.74980408]
[1744355466422,6.495,1549.2,1549.0,1.24644517]
[1744355467545,6.495,1549.2,1549.1,0.7662]
[1744355467951,0.6,1549.4,1549.1,1.04152162]
[1744355468244,6.496,1549.5,1549.3,0.7757]
[1744355468748,6.496,1549.5,1549.4,0.27397046]
[1744355468907,0.8103,1549.7,1549.4,0.27397046]
[1744355469108,7.2473,1549.8,1549.3,0.7757]
[1744355469416,7.2473,1549.8,1549.4,0.27457389]
[1744355469818,7.2473,1549.8,1549.3,1.23937686]
[1744355470026,7.2473,1549.8,1549.5,0.27412357]
[1744355470227,7.2473,1549.8,1549.4,0.2746601]
[1744355470409,7.2473,1549.8,1549.3,0.7757]
[1744355470610,13.69974548,1549.8,1549.3,1.23937686]
[1744355470812,13.69974548,1549.8,1549.3,0.7757]
[1744355472249,13.69974548,1549.8,1549.2,4.61796862]
[1744355472551,13.69974548,1549.8,1549.3,0.2746258]
[1744355472918,13.69974548,1549.8,1549.2,4.61796862]
[1744355473137,13.69974548,1549.8,1549.3,0.27479822]
[1744355473351,0.7505,1549.6,1549.2,0.7569]
[1744355473850,0.7505,1549.6,1549.3,0.27488444]
[1744355474148,0.7505,1549.6,1549.1,7.8213406]
[1744355474446,0.7505,1549.6,1549.4,0.2742617]
[1744355474690,0.7505,1549.6,1549.1,7.8213406]
[1744355474966,1.34865432,1549.6,1549.2,0.27516243]
[1744355475323,0.7781,1549.5,1549.1,7.8213406]
[1744355475511,6.495,1549.4,1549.2,0.27516244]
[1744355475712,6.495,1549.4,1549.1,7.8213406]
[1744355475946,6.495,1549.4,1549.2,0.27516244]
[1744355476447,6.495,1549.4,1549.1,4.8213406]
[1744355476647,6.495,1549.4,1549.3,0.27453958]
[1744355476832,6.495,1549.4,1549.2,0.27499]
[1744355477039,6.495,1549.4,1549.3,0.2746258]
[1744355477219,7.22231,1549.4,1549.3,0.2746258]
[1744355477544,0.7998,1549.3,1549.0,0.4742044]
[1744355477746,0.7998,1549.3,1548.9,0.38610686]
[1744355477908,0.7998,1549.3,1549.1,0.27569915]
[1744355478113,0.7998,1549.3,1548.8,4.8213406]
[1744355478313,0.7998,1549.3,1548.9,0.27668654]
[1744355478523,6.495,1549.4,1549.1,3.86106862]
[1744355478862,7.2948,1549.7,1549.3,4.67126862]
[1744355479167,7.2948,1549.7,1549.4,0.27271076]
[1744355479528,6.495,1549.7,1549.5,3.86106862]
[1744355479758,6.495,1549.7,1549.5,4.24717548]
[1744355479955,6.495,1549.7,1549.6,0.7669]
[1744355481941,6.495,1549.7,1549.6,1.03858093]
[1744355482375,6.495,1549.7,1549.6,0.27168093]
[1744355483457,6.495,1549.7,1549.5,0.7534]
[1744355483768,6.495,1549.7,1549.6,0.27211165]
[1744355484769,6.495,1549.7,1549.4,4.65516862]
[1744355484972,6.495,1549.7,1549.6,0.27211165]
[1744355485266,6.495,1549.7,1549.5,0.27256182]
[1744355485568,6.495,1549.7,1549.6,0.27211165]
[1744355485987,6.495,1549.7,1549.5,0.49590655]
[1744355486295,6.495,1549.7,1549.6,0.27211165]
[1744355486494,6.495,1549.7,1549.4,4.65516862]
[1744355486700,6.495,1549.7,1549.5,0.73816484]
[1744355488092,6.495,1549.7,1549.5,0.27264798]
[1744355488293,6.495,1549.7,1549.3,1.25765498]
[1744355488481,6.495,1549.7,1549.4,0.27275122]
[1744355488681,6.495,1549.7,1549.3,1.25765498]
[1744355488878,6.495,1549.7,1549.4,0.27275122]
[1744355489192,6.495,1549.7,1549.4,3.86106862]
[1744355489492,6.495,1549.7,1549.5,0.65840784]
[1744355491706,6.495,1549.7,1549.5,1.44970784]
[1744355493267,6.495,1549.7,1549.5,1.06360098]
[1744355493924,6.495,1549.7,1549.6,6.45327]
[1744355494212,6.495,1549.7,1549.6,6.72391459]
[1744355496004,6.495,1549.7,1549.6,10.58498321]
[1744355499020,0.7797,1550.0,1549.9,6.45202]
[1744355499220,7.2727,1550.0,1549.9,6.45202]
[1744355499385,7.2727,1550.0,1549.9,6.72140075]
[1744355503024,7.99997,1550.0,1549.9,6.72140075]
[1744355504293,7.2727,1550.0,1549.9,6.72140075]
[1744355511095,7.2727,1550.0,1549.9,0.26938075]
[1744355511574,0.8326,1549.9,1549.7,6.4528]
[1744355511783,0.8326,1549.9,1549.7,6.4527]
[1744355512076,0.8326,1549.9,1549.7,12.90543]
[1744355512698,1.62516,1549.9,1549.8,6.45244]
[1744355515200,0.8326,1549.9,1549.8,6.45244]
[1744355515407,0.8326,1549.9,1549.7,6.4527]
[1744355516003,0.8326,1549.9,1549.7,12.9054]
[1744355516700,0.8326,1549.9,1549.8,6.45244]
[1744355517431,0.6,1550.0,1549.8,6.45244]
[1744355517600,6.492,1549.9,1549.8,6.45244]
[1744355519631,60.94142925,1550.2,1550.1,6.45119]
[1744355519799,67.43342925,1550.2,1550.1,6.45119]
[1744355520837,67.43342925,1550.2,1550.1,6.72292796]
[1744355521349,66.65392925,1550.2,1550.1,6.72292796]
[1744355521552,66.65392925,1550.2,1550.1,7.53262796]
[1744355522050,61.844,1550.2,1550.1,7.53262796]
[1744355522341,61.844,1550.2,1550.1,6.72292796]
[1744355523052,62.6134,1550.2,1550.1,6.72292796]
[1744355525967,62.6134,1550.2,1550.1,0.27173796]
[1744355526166,6.45269,1549.8,1549.4,6.45395]
[1744355526376,7.20837,1549.6,1549.5,5.05093993]
[1744355526579,11.61943862,1549.6,1549.5,4.8213406]
[1744355526874,27.58143862,1549.6,1549.5,4.8213406]
[1744355527173,6.45465,1549.3,1549.1,6.23151503]
[1744355527329,7.271,1549.2,1549.1,12.68687503]
[1744355527536,7.271,1549.2,1549.1,6.23151503]
[1744355528180,18.13700862,1549.2,1549.1,6.23151503]
[1744355528882,21.13700862,1549.2,1549.1,6.23151503]
[1744355529186,6.45577,1549.0,1548.9,7.64322385]
[1744355529385,12.73606862,1549.0,1548.9,7.64322385]
[1744355530255,20.08806862,1549.0,1548.9,7.64322385]
[1744355530875,23.08806862,1549.0,1548.9,7.64322385]
[1744355531201,16.28606862,1549.0,1548.9,7.64322385]
[1744355531552,0.55,1548.8,1548.5,6.45763]
[1744355531765,6.493,1548.7,1548.6,6.45744]
[1744355532599,6.493,1548.7,1548.6,7.22184]
[1744355532794,7.093,1548.7,1548.6,7.22184]
[1744355534001,7.093,1548.7,1548.6,7.4376192]
[1744355534178,7.093,1548.7,1548.6,8.82714412]
[1744355534587,7.093,1548.7,1548.6,12.68821274]
[1744355534893,1e-05,1548.7,1548.6,9.32310474]
[1744355535116,1e-05,1548.7,1548.6,16.18417336]
[1744355535415,6.494,1549.1,1549.0,7.27557]
[1744355536022,6.494,1549.1,1549.0,7.48885601]
[1744355536381,6.494,1549.1,1549.0,6.66905601]
[1744355536581,7.282,1549.1,1549.0,0.21328601]
[1744355536888,7.282,1549.1,1549.0,6.45577]
[1744355537095,6.494,1549.1,1549.0,6.67091145]
[1744355538004,60.15592925,1549.3,1549.2,6.45494]
[1744355538209,66.64992925,1549.3,1549.2,6.45494]
[1744355538387,66.64992925,1549.3,1549.2,6.6686629]
[1744355539986,66.64992925,1549.3,1549.2,0.2137229]
[1744355540319,61.84,1549.3,1549.2,0.2137229]
[1744355540523,68.29244548,1549.3,1549.0,12.91134]
[1744355540729,68.29244548,1549.3,1549.2,0.2137229]
[1744355540921,68.29244548,1549.3,1549.1,6.66948347]
[1744355541219,68.29244548,1549.3,1549.2,0.2137229]
[1744355541409,68.29244548,1549.3,1549.0,6.45559]
[1744355541583,68.29244548,1549.3,1549.2,0.2137229]
[1744355541789,68.29244548,1549.3,1549.0,12.9112]
[1744355542027,68.29244548,1549.3,1549.2,0.2137229]
[1744355542194,68.29244548,1549.3,1549.1,6.66950347]
[1744355542390,6.45244548,1549.2,1549.0,12.91121]
[1744355542610,61.84,1549.3,1549.1,0.21417347]
[1744355542809,68.29457,1549.3,1549.1,0.21417347]
[1744355544108,74.74929,1549.3,1549.1,0.21417347]
[1744355544419,0.7898,1549.2,1549.1,0.21417347]
[1744355544848,0.7898,1549.2,1548.9,6.45601]
[1744355545049,7.24224548,1549.2,1549.1,0.2143459]
[1744355546824,6.45244548,1549.2,1549.1,0.2143459]
[1744355550062,6.4557,1549.1,1548.7,12.91379]
[1744355550259,13.71066548,1549.2,1549.1,0.2143459]
[1744355550439,6.45543,1549.1,1548.8,6.45626]
[1744355550639,0.645543,1549.0,1548.8,6.45626]
[1744355550869,6.493,1548.9,1548.8,12.91271]
[1744355551233,6.493,1548.9,1548.8,6.45626]
[1744355551430,6.493,1548.9,1548.7,12.91386]
[1744355551629,6.493,1548.9,1548.7,6.4569]
[1744355551829,6.493,1548.9,1548.8,6.45661]
[1744355552040,6.494,1549.2,1549.1,6.45536]
[1744355552444,6.494,1549.2,1549.1,7.28146]
[1744355553433,6.494,1549.2,1549.1,7.49491637]
[1744355555583,11.30292925,1549.6,1549.4,6.45375]
[1744355555779,12.51181217,1549.6,1549.5,6.66517259]
[1744355556843,12.51181217,1549.6,1549.5,0.21148259]
[1744355557764,12.51181217,1549.6,1549.4,6.45375]
[1744355558063,12.51181217,1549.6,1549.5,0.21424059]
[1744355558371,7.70188292,1549.6,1549.5,0.21424059]
[1744355558582,7.70188292,1549.6,1549.5,0.21441296]
[1744355558804,14.15515292,1549.6,1549.5,0.21441296]
[1744355559160,6.45369,1549.5,1549.2,6.45487]
[1744355559359,0.645369,1549.4,1549.2,6.45487]
[1744355559798,1.453069,1549.4,1549.0,6.45564]
[1744355560100,13.71668,1549.4,1549.0,6.45563]
[1744355560296,7.26219,1549.4,1549.0,6.45563]
[1744355560597,0.8077,1549.4,1548.9,0.7717]
[1744355560787,6.45523,1549.2,1548.8,6.45647]
[1744355560988,6.493,1549.1,1548.8,12.91291]
[1744355561287,6.493,1549.1,1548.9,0.21737527]
[1744355561502,8.433337,1549.1,1548.9,6.45617]
[1744355561708,15.663697,1549.1,1549.0,0.21649334]
[1744355562016,15.663697,1549.1,1549.0,0.21583343]
[1744355562216,15.663697,1549.1,1548.8,6.45644]
[1744355562719,15.663697,1549.1,1548.9,0.21628417]
[1744355562917,1.5663697,1549.0,1548.9,0.21628417]
[1744355563141,1.5663697,1549.0,1548.8,6.45644]
[1744355563288,1.5663697,1549.0,1548.9,0.21628417]
[1744355563486,1.5663697,1549.0,1548.8,6.45644]
[1744355563717,1.5663697,1549.0,1548.9,0.21628417]
[1744355564109,1.5663697,1549.0,1548.8,6.45644]
[1744355564306,1.5663697,1549.0,1548.9,0.21628417]
[1744355564505,1.5663697,1549.0,1548.8,6.45644]
[1744355564824,1.5663697,1549.0,1548.9,0.21628417]
[1744355565384,1.5663697,1549.0,1548.8,6.45644]
[1744355565584,1.5663697,1549.0,1548.9,0.21628417]
[1744355565897,1.5663697,1549.0,1548.7,12.9139]
[1744355566091,8.0221397,1549.0,1548.9,0.2163704]
[1744355566295,8.0221397,1549.0,1548.8,0.19855286]
[1744355566583,0.79277908,1548.9,1548.7,6.45683]
[1744355566783,1.5663697,1549.0,1548.7,12.91373]
[1744355567015,1.5663697,1549.0,1548.8,6.65377309]
[1744355568018,1.5663697,1549.0,1548.8,6.65364309]
[1744355568220,7.268,1549.1,1548.9,6.45618]
[1744355568393,7.268,1549.1,1549.0,6.45577]
[1744355568394,6.493,1549.1,1549.0,6.45577]
[1744355568598,6.493,1549.1,1549.0,6.6519555]
[1744355571024,6.493,1549.1,1549.0,7.4221555]
[1744355572696,6.493,1549.1,1549.0,6.6519555]
[1744355575934,6.493,1549.1,1549.0,0.1961855]
[1744355576102,7.22513,1549.1,1549.0,0.1961855]
[1744355576540,7.22513,1549.1,1549.0,6.6519555]
[1744355576743,6.493,1549.1,1549.0,6.6519555]
[1744355577300,6.493,1549.1,1549.0,0.1961855]
[1744355577655,6.493,1549.1,1549.0,6.6519555]
[1744355578318,6.493,1549.1,1549.0,0.1961855]
[1744355578515,7.2711,1549.1,1549.0,0.1961855]
[1744355578720,9.289248,1549.1,1548.9,6.45616]
[1744355578919,9.289248,1549.1,1549.0,0.19608134]
[1744355579610,16.294608,1549.1,1549.0,0.19608134]
[1744355579937,6.45579,1549.0,1548.7,6.45689]
[1744355580545,6.45579,1549.0,1548.7,6.45686]
[1744355580733,0.645579,1548.9,1548.8,6.65342023]
[1744355580929,9.839248,1549.1,1548.8,6.65342023]
[1744355581102,9.289248,1549.1,1548.9,6.45619]
[1744355581308,9.289248,1549.1,1548.9,13.10861954]
[1744355581708,7.2711,1549.1,1549.0,6.45577]
[1744355582019,6.493,1549.1,1549.0,6.6516789]
[1744355582433,6.493,1549.1,1549.0,0.1959089]
[1744355583145,6.493,1549.1,1549.0,6.6516789]
[1744355584250,6.493,1549.1,1549.0,0.1959089]
[1744355584455,7.1423,1549.1,1549.0,0.1959089]
[1744355584628,7.9723,1549.1,1549.0,0.1959089]
[1744355585167,14.42766,1549.1,1549.0,0.1959089]
[1744355585647,14.42766,1549.1,1548.8,12.91299]
[1744355585816,14.42766,1549.1,1549.0,0.1959089]
[1744355586212,6.4559,1549.0,1548.7,6.45686]
[1744355586428,0.7591,1548.8,1548.6,6.45724]
[1744355586629,6.492,1548.7,1548.6,12.91456]
[1744355586829,6.492,1548.7,1548.6,6.45724]
[1744355588249,6.492,1548.7,1548.6,7.26904]
[1744355588861,4.80992925,1549.3,1549.1,6.45536]
[1744355589063,4.80992925,1549.3,1549.2,6.45494]
[1744355589353,4.80992925,1549.3,1549.2,10.28424]
[1744355589921,9.25e-06,1549.3,1549.2,10.28424]
[1744355590148,9.25e-06,1549.3,1549.2,16.34424]
[1744355590933,6.23536718,1549.6,1549.5,6.45369]
[1744355592067,6.23536718,1549.6,1549.5,7.22749]
[1744355592257,6.23536718,1549.6,1549.5,8.39222389]
[1744355592568,6.23536718,1549.6,1549.5,12.25329251]
[1744355592970,6.23536718,1549.6,1549.5,6.45369]
[1744355595187,6.492,1549.7,1549.6,6.45327]
[1744355595734,6.492,1549.7,1549.6,6.64690281]
[1744355600186,6.320984,1549.7,1549.6,6.64690281]
[1744355608878,0.8027,1549.9,1549.6,6.64690281]
[1744355609063,0.8027,1549.9,1549.8,6.45244]
[1744355609262,0.8027,1549.9,1549.8,6.64253531]
[1744355609693,62.6555,1550.1,1549.9,6.45186]
[1744355609891,69.10794548,1550.1,1549.9,6.45186]
[1744355610099,62.6555,1550.1,1550.0,6.63843714]
[1744355610875,62.6555,1550.1,1550.0,6.45052014]
[1744355611190,61.838,1550.1,1550.0,6.45052014]
[1744355611794,6.488,1550.1,1550.0,6.45052014]
[1744355612991,6.488,1550.1,1550.0,0.18682714]
[1744355613198,6.488,1550.1,1550.0,6.63843714]
[1744355613355,6.488,1550.1,1550.0,6.45161]
[1744355613560,7.21448,1550.1,1549.8,6.45221]
[1744355613895,7.21448,1550.1,1549.9,13.09153103]
[1744355614108,6.488,1550.1,1550.0,6.45161]
[1744355614295,6.488,1550.1,1550.0,6.63829452]
[1744355628708,6.47116131,1550.1,1550.0,6.63829452]
[1744355630431,6.47116131,1550.1,1550.0,0.18668452]
[1744355630582,7.19595744,1550.1,1550.0,0.18668452]
[1744355633882,7.19595744,1550.1,1550.0,6.63829452]
[1744355634221,7.19595744,1550.1,1550.0,0.18668452]
[1744355634582,7.19595744,1550.1,1549.8,12.90448]
[1744355634783,7.19595744,1550.1,1550.0,0.1872767]
[1744355635021,7.77111,1550.0,1549.9,0.18764058]
[1744355635225,6.45238,1549.9,1549.6,12.51323]
[1744355635521,6.45238,1549.9,1549.6,18.96646]
[1744355635695,6.45238,1549.9,1549.6,12.51323]
[1744355636020,6.47116131,1550.1,1550.0,6.45161]
[1744355636223,13.56970744,1550.1,1549.8,6.45232]
[1744355636382,13.56970744,1550.1,1549.8,6.45227]
[1744355636602,13.56970744,1550.1,1549.8,12.90457]
[1744355636836,7.11827744,1550.1,1549.8,12.90457]
[1744355637047,6.47116131,1550.1,1549.9,6.45186]
[1744355637410,6.47116131,1550.1,1549.9,12.90374]
[1744355637909,6.47116131,1550.1,1549.9,6.45186]
[1744355638406,6.47116131,1550.1,1549.9,12.90376]
[1744355639441,6.47116131,1550.1,1549.9,6.45186]
[1744355639909,6.47116131,1550.1,1550.0,6.45161]
[1744355640820,6.47116131,1550.1,1550.0,6.63842395]
[1744355642550,14.20019744,1550.1,1550.0,0.18681395]
[1744355642843,11.55600744,1550.1,1549.5,0.8088]
[1744355643046,10.82816131,1550.1,1549.9,6.45181]
[1744355643552,7.27816131,1550.1,1550.0,6.63825179]
[1744355644051,7.27816131,1550.1,1550.0,0.18664179]
[1744355644865,7.82816131,1550.1,1550.0,0.18664179]
[1744355645028,14.27935131,1550.1,1550.0,0.18664179]
[1744355645350,0.55,1550.0,1549.8,12.90472]
[1744355645555,0.55,1550.0,1549.9,0.18838335]
[1744355645727,0.55,1550.0,1549.8,6.45231]
[1744355645928,0.55,1550.0,1549.9,0.18838335]
[1744355646153,0.55,1550.0,1549.8,12.90461]
[1744355646346,0.55,1550.0,1549.9,0.18838335]
[1744355646552,2.18524044,1550.0,1549.8,6.4523]
[1744355646854,2.18524044,1550.0,1549.9,0.18803897]
[1744355647226,2.18524044,1550.0,1549.8,6.4523]
[1744355647418,9.42314044,1550.0,1549.9,0.18803897]
[1744355647623,15.87504044,1550.0,1549.9,0.18803897]
[1744355647844,15.87504044,1550.0,1549.6,12.90625]
[1744355648154,9.42314044,1550.0,1549.6,12.90625]
[1744355648319,9.42314044,1550.0,1549.7,6.64204135]
[1744355649355,2.97124044,1550.0,1549.7,6.64194135]
[1744355649529,1.336,1550.0,1549.8,12.90453]
[1744355649853,1.336,1550.0,1549.9,0.18826513]
[1744355650262,1.336,1550.0,1549.8,6.45213]
[1744355650551,1.336,1550.0,1549.9,0.1885234]
[1744355650754,1.336,1550.0,1549.8,6.45213]
[1744355650949,7.78844548,1550.0,1549.9,0.1885234]
[1744355651154,7.78844548,1550.0,1549.8,6.45213]
[1744355651455,7.78844548,1550.0,1549.9,0.1885234]
[1744355651827,7.78844548,1550.0,1549.8,6.45238]
[1744355652356,7.78844548,1550.0,1549.7,6.45282]
[1744355652357,0.77884455,1549.9,1549.7,6.45282]
[1744355652524,0.77884455,1549.9,1549.8,0.18888735]
[1744355652862,1.32884455,1549.9,1549.8,0.18888735]
[1744355653066,8.56056455,1549.9,1549.8,0.18888735]
[1744355653364,7.00245,1549.8,1549.5,6.45366]
[1744355653559,6.484,1549.7,1549.6,0.19021818]
[1744355654173,6.484,1549.7,1549.6,6.64348818]
[1744355654665,6.484,1549.7,1549.6,0.19021818]
[1744355655767,6.484,1549.7,1549.6,7.43528818]
[1744355656559,0.7711,1550.0,1549.8,12.90458]
[1744355656739,6.485,1549.9,1549.8,6.45228]
[1744355659872,6.485,1549.9,1549.8,7.742784]
[1744355660673,6.485,1549.9,1549.7,6.4527]
[1744355661048,6.485,1549.9,1549.8,6.45244]
[1744355663279,6.485,1549.9,1549.7,12.90539]
[1744355663486,6.485,1549.9,1549.7,6.45269]
[1744355663664,6.485,1549.9,1549.6,6.45324]
[1744355663864,1.4354,1549.8,1549.5,6.45354]
[1744355664687,7.888,1549.8,1549.5,6.45354]
[1744355667751,7.888,1549.8,1549.5,12.90705]
[1744355669088,1.4354,1549.8,1549.5,12.90705]
[1744355670477,1.4354,1549.8,1549.6,6.45327]
[1744355670796,1.4354,1549.8,1549.7,0.18794485]
[1744355671150,6.45308,1549.7,1549.3,13.68152]
[1744355671476,7.62803486,1549.7,1549.4,6.6437395]
[1744355671987,11.12015862,1549.5,1549.4,0.1896395]
[1744355672290,24.05704862,1549.5,1549.1,13.67612]
[1744355672664,24.05704862,1549.5,1549.2,0.19165964]
[1744355673170,20.19598,1549.5,1549.3,0.19245868]
[1744355673351,2.019598,1549.4,1549.1,12.91052]
[1744355673550,2.019598,1549.4,1549.2,0.19290906]
[1744355673751,13.74209,1549.5,1549.2,6.64773906]
[1744355673951,13.74209,1549.5,1549.2,13.10249906]
[1744355675208,13.74209,1549.5,1549.2,6.64766906]
[1744355676511,55.355,1549.4,1549.2,6.64766906]
[1744355676883,55.355,1549.4,1549.2,0.19290906]
[1744355677095,5.5355,1549.3,1549.1,12.91048]
[1744355677265,55.355,1549.4,1549.2,0.19325335]
[1744355677470,55.355,1549.4,1549.1,12.91048]
[1744355677819,55.355,1549.4,1549.2,0.19377032]
[1744355678172,55.355,1549.4,1549.1,12.91048]
[1744355678507,55.355,1549.4,1549.2,0.19368416]
[1744355678806,61.80744548,1549.4,1549.1,12.91048]
[1744355679005,61.80744548,1549.4,1549.2,0.19342569]
[1744355679303,61.80744548,1549.4,1549.1,12.91048]
[1744355679513,61.80744548,1549.4,1549.3,0.19297528]
[1744355679683,61.80744548,1549.4,1549.2,0.19351185]
[1744355679872,61.80744548,1549.4,1549.3,0.19306143]
[1744355680078,55.355,1549.4,1549.3,6.45452]
[1744355680396,55.355,1549.4,1549.3,7.41196758]
[1744355681082,61.839,1549.4,1549.3,7.41196758]
[1744355681298,55.355,1549.4,1549.3,7.41196758]
[1744355681586,61.839,1549.4,1549.3,7.41196758]
[1744355682830,61.839,1549.4,1549.3,6.64766758]
[1744355682985,61.839,1549.4,1549.3,0.19314758]
[1744355682986,66.23446879,1549.4,1549.3,0.19314758]
[1744355683179,73.47997879,1549.4,1549.3,0.19314758]
[1744355683410,73.47997879,1549.4,1549.0,7.28874]
[1744355683884,73.47997879,1549.4,1549.1,0.19396226]
[1744355684085,6.45244548,1549.3,1549.1,0.19396226]
[1744355684726,6.45244548,1549.3,1549.1,6.64929226]
[1744355685479,55.355,1549.4,1549.2,6.45461]
[1744355685725,6.484,1549.3,1549.2,6.45461]
[1744355685885,55.355,1549.4,1549.3,7.21952]
[1744355686085,61.839,1549.4,1549.3,7.41232292]
[1744355687320,55.355,1549.4,1549.3,7.41232292]
[1744355687619,61.839,1549.4,1549.3,7.41232292]
[1744355688498,55.355,1549.4,1549.3,7.41232292]
[1744355688705,61.839,1549.4,1549.3,7.41232292]
[1744355690025,55.355,1549.4,1549.3,7.41232292]
[1744355690439,61.839,1549.4,1549.3,7.41232292]
[1744355691801,61.83305398,1549.4,1549.3,7.41232292]
[1744355692937,61.83305398,1549.4,1549.3,6.64732292]
[1744355699338,61.83305398,1549.4,1549.3,7.44652292]
[1744355702043,6.484,1549.4,1549.3,7.44652292]
[1744355703454,6.48,1549.6,1549.5,7.23751]
[1744355703613,56.1648,1550.1,1549.7,0.7842]
[1744355703817,6.48,1550.0,1549.9,6.45173]
[1744355704122,6.48,1550.0,1549.9,6.64186649]
[1744355704920,6.48,1550.0,1549.9,8.77029714]
[1744355707768,55.36,1550.1,1550.0,6.45161]
[1744355707951,61.839,1550.1,1550.0,6.63920019]
[1744355708359,55.36,1550.1,1550.0,10.50026881]
[1744355708537,61.839,1550.1,1550.0,12.46286605]
[1744355708737,55.36,1550.1,1550.0,12.46286605]
[1744355708940,61.839,1550.1,1550.0,12.46286605]
[1744355709149,6.479,1550.1,1550.0,12.46286605]
[1744355709639,6.479,1550.1,1550.0,15.46286605]
[1744355710349,6.479,1550.1,1550.0,15.93723287]
[1744355713326,0.1,1550.4,1550.3,6.45036]
[1744355713562,6.578,1550.4,1550.3,8.75105401]
[1744355714959,0.1,1550.4,1550.3,8.75105401]
[1744355715470,6.578,1550.4,1550.3,8.75105401]
[1744355722171,6.578,1550.4,1550.3,2.30069401]
[1744355722379,6.578,1550.4,1550.3,0.18649901]
[1744355722550,6.578,1550.4,1550.3,6.63685901]
[1744355725180,6.578,1550.4,1550.3,0.18649901]
[1744355726357,6.578,1550.4,1550.3,6.63685901]
[1744355727279,0.1,1550.4,1550.3,6.63685901]
[1744355727594,6.572,1550.4,1550.3,6.63685901]
[1744355730589,6.572,1550.4,1550.3,0.18649901]
[1744355730799,6.572,1550.4,1550.3,6.63685901]
[1744355730997,6.572,1550.4,1550.3,0.18649901]
[1744355731195,6.572,1550.4,1550.2,6.45051]
[1744355731387,7.31101,1550.4,1550.3,0.16709303]
[1744355732959,7.31101,1550.4,1550.2,6.4507]
[1744355733299,6.572,1550.4,1550.3,0.16757837]
[1744355733661,6.572,1550.4,1550.1,12.9022]
[1744355733900,6.572,1550.4,1550.2,0.16802807]
[1744355734097,0.7716,1550.3,1550.2,0.16802807]
[1744355734276,0.7716,1550.3,1550.1,12.90214]
[1744355734576,0.7716,1550.3,1550.2,0.16802807]
[1744355734798,0.1,1550.4,1550.2,6.45073]
[1744355735001,6.472,1550.3,1550.2,6.45073]
[1744355735798,6.472,1550.3,1550.2,12.90137]